Cogmind - Beta 13 @@@ ROGUE MODE // 2024.04.06 @ 22:39:28 Player: SovietPaperclip Result: Self-destructed Performance ------------- Evolutions (2) 1000 Regions Visited (4) 800 Robots Destroyed (58) 290 Value Destroyed (1506) 1506 Prototype IDs (2) 40 Alien Tech Used (0) 0 Bonus (28) 28 TOTAL SCORE: 3664 Bonus ------- High Alert Combat Kills 28 Cogmind --------- Core Integrity 417/550 Matter 78/300 Energy 160/160 System Corruption 1% Temperature Cool (3) Movement Treading (320) Ox2 Location -8/Materials Parts ------- > --- POWER (1) -------- Light Nuclear Core > --- PROPULSION (4) --- Light Treads > --- UTILITY (4) ------ High-capacity Storage Unit Signal Interpreter > --- WEAPON (2) ------- Autogun Rocket Launcher > --- INVENTORY (20) --- Improved Flight Unit Improved Flight Unit Medium Storage Unit Large Storage Unit Structural Scanner Sensor Array Hacking Suite Hacking Suite Hacking Suite Grenade Launcher Maul Peak State ------------ > --- POWER ------------ Cooled Ion Engine > --- PROPULSION ------- Light Treads Light Treads Light Treads Light Treads > --- UTILITY ---------- Cooling System High-capacity Storage Unit Signal Interpreter Light Armor Plating > --- WEAPON ----------- Particle Cannon Flak Cannon > --- INVENTORY -------- Improved Flight Unit Improved Flight Unit Medium Storage Unit Large Storage Unit Structural Scanner Sensor Array Light Armor Plating Hacking Suite Hacking Suite Hacking Suite Autogun Grenade Launcher Rocket Launcher Maul [Rating: 19] Favorites ----------- Power Cooled Ion Engine Engine Cooled Ion Engine Power Core Light Nuclear Core Propulsion Light Treads Treads Light Treads Leg Aluminum Leg Flight Unit Improved Flight Unit Utility Light Armor Plating Device Cooling System Storage High-capacity Storage Unit Processor Signal Interpreter Protection Light Armor Plating Weapon Particle Cannon Energy Gun Medium Laser Energy Cannon Particle Cannon Ballistic Gun Autogun Ballistic Cannon Flak Cannon Launcher Rocket Launcher Build | -11 -10 -9 -9 -8 ------- Run | Yrd Mat Mat Min Mat Slots Evolved 4 | . . 2 . 2 Power . | . . . . . Propulsion 2 | . . 1 . 1 Utility 2 | . . 1 . 1 Weapon . | . . . . . Parts Attached 35 | 6 1 21 . 7 Power 3 | 1 . 1 . 1 Engine 2 | 1 . 1 . . Core 1 | . . . . 1 Reactor . | . . . . . Propulsion 9 | 2 . 6 . 1 Treads 4 | . . 3 . 1 Leg 4 | 2 . 2 . . Wheel . | . . . . . Hover . | . . . . . Flight 1 | . . 1 . . Utility 12 | 1 1 8 . 2 Device 2 | . . 2 . . Storage 4 | 1 . 3 . . Processor 1 | . . . . 1 Hackware . | . . . . . Protection 5 | . 1 3 . 1 Artifact . | . . . . . Weapon 11 | 2 . 6 . 3 Energy Gun 1 | 1 . . . . Energy Cannon 1 | . . 1 . . Ballistic Gun 6 | 1 . 4 . 1 Ballistic Cannon 1 | . . . . 1 Launcher 2 | . . 1 . 1 Special Weapon . | . . . . . Impact Weapon . | . . . . . Slashing Weapon . | . . . . . Piercing Weapon . | . . . . . Special Melee Weapon . | . . . . . Unidentified Prototypes 2 | . . 2 . . Parts Lost 14 | . . 5 . 9 Power 1 | . . . . 1 Propulsion 6 | . . 3 . 3 Utility 5 | . . 2 . 3 Weapon 2 | . . . . 2 Highest Loss Streak 3 | . . 3 . 3 To Critical Strikes . | . . . . . Average Slot Usage (%) 92 | . 88 93 100 86 Engine 10 | . 14 11 11 8 Treads 14 | . . 3 33 30 Leg 16 | . 28 27 . . Device 6 | . . 8 11 3 Storage 10 | . 14 11 11 9 Processor 2 | . . . . 8 Protection 8 | . 3 9 11 7 Energy Gun 2 | . 14 1 . . Energy Cannon 6 | . . 7 11 3 Ballistic Gun 11 | . 14 12 11 8 Ballistic Cannon 1 | . . . . 4 Naked Turns . | . . . . . Heaviest Build 60 | 13 16 60 60 60 Greatest Support 80 | 20 20 60 60 80 Greatest Overweight (x) 3 | 3 . 3 . 1 Average Overweight (x) . | . . . . . Largest Inventory Capacity 20 | 8 8 20 20 20 Average Capacity 14 | 7 8 11 20 20 Most Carried 14 | 3 5 12 13 14 Average Carried 9 | . 2 8 12 12 Final Capacity 20 | 8 8 20 20 20 Final Carried 13 | 1 5 12 13 11 Class Distribution -------------------- 60% | Mutant 39% | Scavenger-Mutant Dominant Class ---------------- Mutant | -10/Materials Mutant | -9/Materials Scavenger-Mutant | -9/Mines Scavenger-Mutant | -8/Materials Resources | -11 -10 -9 -9 -8 ----------- Run | Yrd Mat Mat Min Mat Matter Collected 1053 | 176 129 417 5 326 Remotely . | . . . . . Salvage Created 1740 | . 270 899 . 571 Parts 130 | . 21 74 . 35 Haulers Intercepted 3 | . . 3 . . Recyclers Shooed 1 | . . . . 1 Parts Field Recycled . | . . . . . Retrieved Matter . | . . . . . Parts Self-Destructed . | . . . . . Prevented . | . . . . . Kills | -11 -10 -9 -9 -8 ------- Run | Yrd Mat Mat Min Mat Combat Hostiles Destroyed 44 | . 8 21 . 15 Guns 19 | . 8 8 . 3 Cannons 16 | . . 8 . 8 AOE 9 | . . 5 . 4 Classes Destroyed 10 | . 5 3 . 2 Worker 3 | . . 2 . 1 Builder 1 | . . . . 1 Hauler 3 | . . 3 . . Recycler 1 | . 1 . . . Operator 3 | . 1 1 . 1 Watcher 3 | . 1 2 . . Swarmer 16 | . 6 8 . 2 Grunt 19 | . 2 7 . 10 Sentry 8 | . . 6 . 2 Hunter 1 | . . . . 1 Best Kill Streak 10 | . 4 10 . 4 Combat Bots Only 7 | . 3 7 . 4 Max Kills in Single Turn 3 | . 1 3 . 3 Gunslinging . | . . . . . Exploded 2 | . . 2 . 2 Melee . | . . . . . Uniques/NPCs Destroyed . | . . . . . Combat | -11 -10 -9 -9 -8 -------- Run | Yrd Mat Mat Min Mat Hostile Shots Fired 236 | . 46 90 . 100 Missed 73 | . 15 29 . 29 Damage Taken 2184 | . 275 715 . 1194 Core 262 | . 65 64 . 133 Absorbed by Shields . | . . . . . Core Remaining (%) 86 | 100 74 . 84 . Volleys Fired 177 | 1 34 71 . 71 Largest 2 | 2 2 2 . 2 Hottest 112 | 70 70 98 . 112 Shots Fired 338 | 2 68 141 . 127 Gun 207 | 2 68 78 . 59 Cannon 126 | . . 60 . 66 Launcher 5 | . . 3 . 2 Special . | . . . . . Kinetic 208 | 1 34 72 . 101 Thermal 125 | 1 34 66 . 24 Explosive 5 | . . 3 . 2 Electromagnetic . | . . . . . Robot Hit Streak 11 | . 7 9 . 11 Robot Miss Streak 9 | 2 3 5 . 9 Penetration Max . | . . . . . Secondary Targets 1 | . 1 . . . Max Gunslinging Chain 1 | . 1 . . . Shots Hit Robots 213 | . 38 86 . 89 Core Hits 125 | . 19 40 . 66 Critical Kills 1 | . . 1 . . Critical Parts Destroyed 1 | . . 1 . . Critical Strikes 4 | . 2 2 . . Burn 2 | . 2 . . . Meltdown 1 | . . 1 . . Destroy 1 | . . 1 . . Melee Attacks . | . . . . . Impact . | . . . . . Slashing . | . . . . . Piercing . | . . . . . Sneak Attacks . | . . . . . Combat Hostiles . | . . . . . Follow-up Attacks . | . . . . . Damage Inflicted 4016 | . 430 1828 . 1758 Guns 1588 | . 430 667 . 491 Cannons 1813 | . . 839 . 974 Explosions 615 | . . 322 . 293 Melee . | . . . . . Ramming . | . . . . . Kinetic 1945 | . 181 629 . 1135 Thermal 1456 | . 249 877 . 330 Explosive 469 | . . 322 . 147 Electromagnetic 146 | . . . . 146 Impact . | . . . . . Slashing . | . . . . . Piercing . | . . . . . Highest Corruption 1 | . . . . 1 Average Corruption 1 | . . . . 1 Corruption Purged . | . . . . . Corruption Blocked . | . . . . . Effects 4 | . . . . 4 Message Errors 1 | . . . . 1 Matter Fused 2 | . . . . 2 Heat Flow Errors 1 | . . . . 1 Overload Shots . | . . . . . Overflow Damage 46 | . . 25 . 21 Projectiles 5 | . . 5 . . Explosions 41 | . . 20 . 21 Melee . | . . . . . Knockbacks 23 | . . . . 23 Impact . | . . . . . Kinetic 21 | . . . . 21 Secondary 2 | . . . . 2 Self-Inflicted Damage 114 | . . 43 . 71 Shots 4 | . . 2 . 2 Rammed . | . . . . . Targets Rammed . | . . . . . Kicked . | . . . . . Crushed . | . . . . . Highest Temperature 222 | 30 222 55 . 187 Average Temperature 48 | 18 73 18 . 28 Received Heat Transfer 822 | . 36 219 . 567 Siege Activations . | . . . . . Robots Corrupted . | . . . . . Combat Hostiles . | . . . . . Parts Fried . | . . . . . Impact Corruptions . | . . . . . Robots Melted 1 | . . 1 . . Combat Hostiles . | . . . . . Parts Melted . | . . . . . Heat Transferred 3108 | . 888 1628 . 592 Parts Sabotaged . | . . . . . Parts Stolen . | . . . . . Parts Stripped . | . . . . . Power Chain Reactions . | . . . . . Alert | -11 -10 -9 -9 -8 ------- Run | Yrd Mat Mat Min Mat Peak Influence 449 | . 239 428 166 449 Initial 166 | . . 100 166 64 Average 203 | . 107 226 166 251 Maximum Alert Level 2 | . 1 2 . 2 Low Security (%) 60 | 100 80 50 100 39 Level 1 32 | . 19 36 . 55 Level 2 7 | . . 13 . 5 Level 3 . | . . . . . Level 4 . | . . . . . Level 5 . | . . . . . High Security . | . . . . . Max Security . | . . . . . Squads Dispatched 6 | . 1 2 . 3 Investigation 1 | . . 1 . . Extermination . | . . . . . Reinforcement 3 | . 1 1 . 1 Assault . | . . . . . Garrison 2 | . . . . 2 Intercept . | . . . . . Searches Triggered . | . . . . . Construction Impeded . | . . . . . Haulers Reinforced . | . . . . . Active Scanning Responses . | . . . . . Cargo Convoy Interrupts . | . . . . . Stealth | -11 -10 -9 -9 -8 --------- Run | Yrd Mat Mat Min Mat Distress Signals 5 | . 1 2 . 2 Communications Jammed . | . . . . . Distress Signals . | . . . . . Times Spotted 69 | . 10 34 . 25 Peak Tracking Total 6 | . 4 6 . 6 Tactical Retreats 2 | . . . . 2 Traps | -11 -10 -9 -9 -8 ------- Run | Yrd Mat Mat Min Mat Traps Triggered 1 | . . 1 . . Indirectly . | . . . . . Trap Hack Attempts . | . . . . . Triggered . | . . . . . Disarmed . | . . . . . Reprogrammed . | . . . . . Reused . | . . . . . Traps Extracted . | . . . . . Installed . | . . . . . Triggered . | . . . . . Machines | -11 -10 -9 -9 -8 ---------- Run | Yrd Mat Mat Min Mat Machines Disabled 2 | . . . . 2 Max in Single Turn 1 | . . . . 1 Garrison Access 1 | . . . . 1 Machines Repaired . | . . . . . Machines Dismantled . | . . . . . Machines Sabotaged . | . . . . . Overloaded Fab Kills . | . . . . . Hacking | -11 -10 -9 -9 -8 --------- Run | Yrd Mat Mat Min Mat Machines Accessed 3 | . . 1 . 2 Terminals 1 | . . . . 1 Fabricators . | . . . . . Repair Stations . | . . . . . Recycling Units . | . . . . . Scanalyzers 1 | . . 1 . . Garrison Access 1 | . . . . 1 Total Hacks 7 | . . 3 . 4 Successful 4 | . . 2 . 2 Failed 3 | . . 1 . 2 Catastrophic . | . . . . . Database Lockouts . | . . . . . Manual . | . . . . . Terminals 2 | . . . . 2 Fabricators . | . . . . . Repair Stations . | . . . . . Recycling Units . | . . . . . Scanalyzers 3 | . . 3 . . Garrison Access 2 | . . . . 2 Terminal Hacks 1 | . . . . 1 Locate Traps 1 | . . . . 1 Fabricator Hacks . | . . . . . Repair Station Hacks . | . . . . . Recycling Unit Hacks . | . . . . . Scanalyzer 2 | . . 2 . . Insert Component 1 | . . 1 . . Analyze 1 | . . 1 . . Garrison Access Hacks 1 | . . . . 1 Seal Access 1 | . . . . 1 Unauthorized Hacks . | . . . . . Terminals . | . . . . . Fabricators . | . . . . . Repair Stations . | . . . . . Recycling Units . | . . . . . Scanalyzers . | . . . . . Garrison Access . | . . . . . Data Cores Recovered . | . . . . . Used . | . . . . . Hacking Detections 2 | . . 1 . 1 Full Trace Events . | . . . . . Feedback Events . | . . . . . Feedback Blocked . | . . . . . Robot Schematics Acquired . | . . . . . Robots Built . | . . . . . Authchips . | . . . . . Time . | . . . . . Total Robot Build Rating . | . . . . . Part Schematics Acquired 1 | . . 1 . . Parts Built . | . . . . . Authchips . | . . . . . Time . | . . . . . Total Part Build Rating . | . . . . . Parts Repaired . | . . . . . Time . | . . . . . Parts Recycled . | . . . . . Recycled Matter . | . . . . . Retrieved Matter . | . . . . . Retrieved Components . | . . . . . Parts Scanalyzed 1 | . . 1 . . Part Schematics Acquired 1 | . . 1 . . Parts Damaged . | . . . . . Bothacking | -11 -10 -9 -9 -8 ------------ Run | Yrd Mat Mat Min Mat Used RIF Installer . | . . . . . Robots Hacked . | . . . . . Non-combat . | . . . . . Combat . | . . . . . Robot Hacks Applied . | . . . . . Relay Couplers Released . | . . . . . Fabnet Peak Effective % . | . . . . . Robots Rewired . | . . . . . Allies Hacked . | . . . . . Hacks Repelled . | . . . . . Allies | -11 -10 -9 -9 -8 -------- Run | Yrd Mat Mat Min Mat Total Allies . | . . . . . Largest Group . | . . . . . Highest-Rated Group . | . . . . . Highest-Rated Ally . | . . . . . Total Orders . | . . . . . Ally Attacks . | . . . . . Total Damage . | . . . . . Kills . | . . . . . Allies Corrupted . | . . . . . Allies Melted . | . . . . . Intel | -11 -10 -9 -9 -8 ------- Run | Yrd Mat Mat Min Mat Robot Analysis Total . | . . . . . Derelict Logs Recovered . | . . . . . Drone Launches . | . . . . . Drone Recoveries . | . . . . . Exploration | -11 -10 -9 -9 -8 ------------- Run | Yrd Mat Mat Min Mat Turns Passed 2462 | 67 271 1162 384 578 Spaces Moved 1214 | 44 137 604 240 189 Core 19 | 19 . . . . Treads 505 | . . 76 240 189 Legs 690 | 25 137 528 . . Wheels . | . . . . . Hover . | . . . . . Flight . | . . . . . Fastest Speed 50 | 50 120 120 160 160 Average Speed 146 | 117 120 140 160 175 Slowest Speed 330 | 200 120 330 160 240 Overloaded Moves . | . . . . . Propulsion Burnouts . | . . . . . Robots Hopped . | . . . . . Cave-ins Triggered . | . . . . . Exploration Rate (%) 33 | 3 34 53 52 24 Regions Visited 4 Branch Regions 1 Pre-discovered Areas . | . . . . . Known Exits Taken . | . . . . . Unknown Exits Taken 4 | 1 1 1 1 . Scrap Searched 2 | . . . 2 . Spaces Dug . | . . . . . Terrain Destroyed 38 | . . 17 . 21 Melee . | . . . . . Projectile . | . . . . . AOE 38 | . . 17 . 21 Terrain Rammed . | . . . . . Walls Destroyed . | . . . . . Machines Disabled . | . . . . . Actions | -11 -10 -9 -9 -8 --------- Run | Yrd Mat Mat Min Mat Total 1582 | 57 182 783 240 320 Wait 94 | . 6 39 . 49 Move 1210 | 43 136 603 239 189 Hop . | . . . . . Pick Up 48 | 7 5 31 1 4 Fast Attach . | . . . . . Attach 25 | 6 1 12 . 6 Detach 1 | . . 1 . . Swap 10 | . . 9 . 1 Drop 17 | . . 17 . . Fire 177 | 1 34 71 . 71 Melee . | . . . . . Ram . | . . . . . Kick . | . . . . . Crush . | . . . . . Escape Stasis . | . . . . . Rewire . | . . . . . Trap . | . . . . . Miscellaneous . | . . . . . Route ------- -11/Scrapyard -10/Materials -9/Materials (discovered 2 exits: *Mat / [*Min]) -9/Mines -8/Materials History --------- Turn | Location | Event 24 | -11/Scrapyard | Discovered new exit (range 16) 68 | -11/Scrapyard | Entered Materials 312 | -10/Materials | Build established: Mutant 313 | -10/Materials | Discovered new exit (range 15) 339 | -10/Materials | Entered another Materials area 339 | -9/Materials | Evolved 2 slots: Propulsion x1, Utility x1 925 | -9/Materials | Discovered new exit (range 4) 1228 | -9/Materials | Discovered new exit (range 13) 1360 | -9/Materials | Destroyed 7 combat bots 1367 | -9/Materials | Lost 3 parts (2n1u) 1501 | -9/Materials | Entered Mines 1518 | -9/Mines | Received a Rocket Launcher from a helpful Derelict 1712 | -9/Mines | Build established: Scavenger-Mutant 1846 | -9/Mines | Discovered new exit (range 9) 1885 | -9/Mines | Entered Materials 1885 | -8/Materials | Evolved 2 slots: Propulsion x1, Utility x1 2131 | -8/Materials | Lost 3 parts (2u1w) 2187 | -8/Materials | Garrison activated, responded to threat 2308 | -8/Materials | Garrison activated, responded to threat 2385 | -8/Materials | Lost 3 parts (1n1u1w) 2463 | -8/Materials | Self-destructed Last Messages --------------- 02401_ U-05 Engineer lays Concrete. 02402_ U-05 Engineer builds a Wall. 02402_ U-05 Engineer lays Concrete. 02403_ K-01 Serf destroyed. 02403_ U-05 Engineer lays Concrete. 02405_ Acquired 9 matter. 02405_ U-05 Engineer lays Concrete. 02406_ K-01 Serf collects debris. 02407_ U-05 Engineer lays Concrete. 02407_ U-05 Engineer builds a Wall. 02409_ K-01 Serf collects debris. 02409_ U-05 Engineer lays Concrete. 02414_ U-05 Engineer builds a Wall. 02414_ U-05 Engineer lays Concrete. 02414_ U-05 Engineer builds a Wall. 02416_ U-05 Engineer lays Concrete. 02430_ Cld. Ion Engine destroyed. 02435_ LK8WHJWB,OXLGD> EJXQXHTWQQXVNLFG/AKUPYE 02462_ Lgt. Treads destroyed. 02462_ Critical hit (Burn: +37). Map ----- +----------------------------------------------------+ | ?????????????????????????????????????????????????? | | ?????????????????????????????????????????????????? | | ?????????????????????????????????????????????????? | | ?????????????????????????????????????????????????? | | ?????????????????????????????????????????????????? | | ?????????????????????????????????????????????????? | | ?????????????????????????????????????????????????? | | ?????????????????????????????????????????????????? | | ?????????????????????????????????????????????????? | | ?????????????????????????????????????????????????? | | ?????????????????????????????????????????????????? | | ?????????????????????????????????????????????????? | | ?????????????????????????????????????? ????????? | | ?????????????????????????????????????? ???????? | | ?????????????????????????????????????? ???????? | | ?????????????????????????????????????? ???????? | | ?????????????????????????????????????? #???????? | | ?????????????????????????????????????# #?? ?? | | ?????????????????????????????????????# #?# ? | | ?????????????????????????????????????# #?# ?? | | ?????????????????????????????????????# #?# ?? | | ?????????????????????????????????????# #?# ?? | | ?????????????????????????????????????# #?# ?? | | ?????????????????????????????######### #?# #?? | | ????????????????????# ######## = # #?#= #?# | | ????????????????????# @ t # #?#%! #?# | | ????????????????????# ######## Y + #?#= #?? | | ?????????????????????????????# # #?# #?? | | ?????????????????????????????# # #?# #?? | | ?????????????????????????????######### #?# ### | | ??????????????????????????????#########+#### | | ?????????????????????????????# # ! | | ?????????????????????????????# # = % | | ?????????????????????????????# # !### | | ?????????????????????????????# # # # | | ?????????????????????????????# # ### | | ?????????????????????????????# # =# | | ?????????????????????????????############### = # | | ??????????????????????????????????? # # | | ?????????????????????????????????+ ""? """ # # | | ?????????????????????????????????????" """ # # | | ?????????????????????????????????????" """ # # | | ?????????????????????????????????????" """ # # | | ???????????????????????????????????""" """ + + | | ?????????????????????????????????# # # | | ?????????????????????????????????# # | | ?????????????????????????????????########### # | | ???????????????????????????????????????????# ### | | ???????????????????????????????????????????# ?? | | ???????????????????????????????????????????# ^ ?? | +----------------------------------------------------+ Best States ------------- Heat Dissipation 53 Energy Generation 14 Energy Capacity 280 Matter Stores 300 Matter Capacity 300 Sight Range 16 Robot Scan Range 14 Terrain Scan Density 10 Armor Coverage 150 Evasion (%) 55 Recoil Reduction 4 Item Schematics ----------------- Hacking Suite | -9/Materials | Scanalyzed Robot Schematics ------------------ None Fabricated ------------ Nothing Alien Tech Used ----------------- None Achievements -------------- None Challenges ------------ None Game ------ Seed ThrowingMomentumBrace Manual? 0 Play Time 00:19:36 Cumulative 48.2 hours Start 2024.04.06 @ 22:21:55 End 2024.04.06 @ 22:39:28 Sessions 1 Manual Loads 0 Difficulty Rogue Special Mode None Game No. 68 Rogue 68 Adventurer 0 Explorer 0 Win Type - Total 1 Types 1/0/0/0/0/0/0/0/0 Lore% 29 Gallery% 30 Achievement% 32 Wizard Run 0 Options --------- Layout 1 ASCII 0 Keyboard 0 Movement Mouse Keybinds 0 Fullscreen 2 Font 32/Smallcaps Map View 50x40 Zoom Use 0% Tactical HUD 1 Map Filters NONE Filters NONE Steam 1 RUN: 93c8a209-df04-46b2-b897-1ba7376dd304